Workbook

Sheet паспорт
A1: ПАТ "УКРТРАНСГАЗ" | M1: ПАСПОРТ ФІЗИКО-ХІМІЧНИХ ПОКАЗНИКІВ ПРИРОДНОГО ГАЗУ | T1: №656
A2: Філія УМГ"Харківтрансгаз" | I2: переданого УМГ "ХАРКІВТРАНСГАЗ" Херсонським ЛВУМГ та прийнятого ПАТ "Херсонгаз" , ТОВ "РИТЕЙЛ- КР", РВУ "Харьківавтогаз", ТОВ "ТЕК"ІТЕРА"
A3: Херсонське ЛВУМГ | J3: по газопроводу Мар'ївка-Херсон, Херсон-Крим за період з 01.02.2017 по 28.02.2017 ( точка відбору ГРС -1 Херсон)
A4: Вимірювальна хіміко-аналітична лабораторія | O4: МАРШРУТ № 656
A5: Свідоцтво про атестацію № РЧ 161/2015 дійсне до 01.01.2019 р.
A7: Число місяця | B7: Компонентний склад, мол. % | N7: Фізико-хімічні показники газу обчислені на основі компонентного складу, 101,325 кПа | X7: Температура точки роси за вологою (Р = 3.92 МПа), °С | Y7: Температура точки роси за вуглеводнями, °С | Z7: Вміст сірководню, г/м3 | AA7: Вміст меркаптанової сірки, г/м3 | AB7: Вміст механічних домішок, г/м3
N8: Густина абсолютна, кг/м3,при 20 °С, | O8: Температура вимірювання/згоряння при 20/25°С
B9: метан, С1 | C9: етан, С2 | D9: пропан, С3 | E9: ізо-бутан, і-С4 | F9: н-бутан, н-С4 | G9: нео-пентан, нео-С5 | H9: ізо-пентан, і-С5 | I9: н-пентан, н-С5 | J9: гексани та вищі, С6+ | K9: кисень, О2 | L9: азот, N2 | M9: діоксид вуглецю, CО2 | O9: Теплота згоряння нижча | R9: Теплота згоряння вища | U9: Число Воббе вище
O10: ккал/м³ | P10: МДж/м³ | Q10: кВт⋅год/м³ | R10: ккал/м³ | S10: МДж/м³ | T10: кВт⋅год/м³ | U10: ккал/м³ | V10: МДж/м³ | W10: кВт⋅год/м³
A11: 1 | B11: 96.0232 | C11: 2.1202 | D11: 0.6681 | E11: 0.1031 | F11: 0.1082 | G11: 0.0007 | H11: 0.0231 | I11: 0.0161 | J11: 0.0142 | K11: 0.0098 | L11: 0.765 | M11: 0.1483 | N11: 0.6992 | O11: 8179 | P11: 34.2474 | Q11: =P11/3.6 -> 9.513166667 | R11: =37.98*238.8459 -> 9071.367282 | S11: 37.9771 | T11: =S11/3.6 -> 10.54919444 | U11: =V11*238.8459 -> 11905.51273 | V11: 49.846 | W11: =V11/3.6 -> 13.84611111 | X11: -25.2 | Y11: -8.2
A12: 2 | B12: 96.0737 | C12: 2.0905 | D12: 0.6548 | E12: 0.1013 | F12: 0.1052 | G12: 0.0006 | H12: 0.0228 | I12: 0.0158 | J12: 0.0132 | K12: 0.0089 | L12: 0.7677 | M12: 0.1456 | N12: 0.6987 | O12: 8175 | P12: 34.2272 | Q12: =P12/3.6 -> 9.507555556 | R12: =S12*238.8459 -> 9065.515557 | S12: 37.9555 | T12: =S12/3.6 -> 10.54319444 | U12: =V12*238.8459 -> 11902.88543 | V12: 49.835 | W12: =V12/3.6 -> 13.84305556 | X12: -23.2 | Y12: -7.8
A13: 3 | B13: 96.0933 | C13: 2.0693 | D13: 0.6457 | E13: 0.1003 | F13: 0.1047 | G13: 0.0005 | H13: 0.0218 | I13: 0.0153 | J13: 0.0133 | K13: 0.0095 | L13: 0.7805 | M13: 0.1457 | N13: 0.6984 | O13: 8171 | P13: 34.2099 | Q13: 9.50275 | R13: =S13*238.8459 -> 9061.049139 | S13: 37.9368 | T13: 10.538 | U13: 11898.87282 | V13: 49.8182 | W13: 13.83838889 | X13: -22.8 | Y13: -7.7 | AB13: відсут. | AD13: =IF(AC13=100,"ОК"," ") -> 
A14: 4 | O14: 8171 | P14: 34.2099 | Q14: 9.50275 | R14: =S14*238.8459 -> 9061.049139 | S14: 37.9368 | T14: 10.538 | U14: 11898.87282 | V14: 49.8182 | W14: 13.83838889 | AD14: =IF(AC14=100,"ОК"," ") -> 
A15: 5 | O15: 8171 | P15: 34.2099 | Q15: 9.50275 | R15: 9061.049139 | S15: 37.9368 | T15: 10.538 | U15: 11898.87282 | V15: 49.8182 | W15: 13.83838889
A16: 6 | B16: 96.3894 | C16: 1.8787 | D16: 0.5832 | E16: 0.0917 | F16: 0.094 | G16: 0.0005 | H16: 0.0197 | I16: 0.0135 | J16: 0.0088 | K16: 0.0102 | L16: 0.7785 | M16: 0.1318 | N16: 0.6959 | O16: 8146 | P16: 34.1076 | Q16: 9.474333333 | R16: =S16*238.8459 -> 9034.895513 | S16: 37.8273 | T16: 10.50758333 | U16: 11886.57225 | V16: 49.7667 | W16: 13.82408333 | X16: -22.7 | Y16: -6.8
A17: 7 | B17: 96.342 | C17: 1.9279 | D17: 0.5973 | E17: 0.0933 | F17: 0.0939 | G17: 0.0005 | H17: 0.0194 | I17: 0.0131 | J17: 0.0075 | K17: 0.0104 | L17: 0.7618 | M17: 0.133 | N17: 0.6962 | O17: 8152 | P17: 34.1315 | Q17: 9.480972222 | R17: =S17*238.8459 -> 9041.081622 | S17: 37.8532 | T17: 10.51477778 | U17: 11891.65967 | V17: 49.788 | W17: 13.83 | X17: -21.8 | Y17: -10.9 | Z17: <0,0001 | AA17: 0.0012
A18: 8 | B18: 96.3045 | C18: 1.9644 | D18: 0.61 | E18: 0.0955 | F18: 0.0955 | G18: 0.0006 | H18: 0.02 | I18: 0.0134 | J18: 0.0074 | K18: 0.0093 | L18: 0.7452 | M18: 0.1343 | N18: 0.6966 | O18: 8158 | P18: 34.1572 | Q18: 9.488111111 | R18: =S18*238.8459 -> 9047.697653 | S18: 37.8809 | T18: 10.52247222 | U18: 11897.15312 | V18: 49.811 | W18: 13.83638889 | X18: -22.5 | Y18: -10.4
A19: 9 | B19: 96.2689 | C19: 1.9576 | D19: 0.6072 | E19: 0.0958 | F19: 0.0949 | G19: 0.0006 | H19: 0.0193 | I19: 0.0127 | J19: 0.0085 | K19: 0.0224 | L19: 0.7809 | M19: 0.1312 | N19: 0.6967 | O19: 8153 | P19: 34.1383 | Q19: 9.482861111 | R19: =S19*238.8459 -> 9042.729659 | S19: 37.8601 | T19: 10.51669444 | U19: 11889.34286 | V19: 49.7783 | W19: 13.82730556 | X19: -21.7 | Y19: -10.5
A20: 10 | B20: 95.0903 | C20: 2.6582 | D20: 0.7674 | E20: 0.1017 | F20: 0.1121 | G20: 0.0005 | H20: 0.0231 | I20: 0.0165 | J20: 0.0163 | K20: 0.0095 | L20: 1.0491 | M20: 0.1554 | N20: 0.7051 | O20: 8203 | P20: 34.3474 | Q20: 9.540944444 | R20: =S20*238.8459 -> 9095.34741 | S20: 38.0804 | T20: 10.57788889 | U20: 11887.59929 | V20: 49.771 | W20: 13.82527778 | X20: -21.1 | Y20: -8.8
A21: 11 | O21: 8203 | P21: 34.3474 | Q21: 9.540944444 | R21: =S21*238.8459 -> 9095.34741 | S21: 38.0804 | T21: 10.57788889 | U21: 11887.59929 | V21: 49.771 | W21: 13.82527778
A22: 12 | O22: 8203 | P22: 34.3474 | Q22: 9.540944444 | R22: =S22*238.8459 -> 9095.34741 | S22: 38.0804 | T22: 10.57788889 | U22: 11887.59929 | V22: 49.771 | W22: 13.82527778
A23: 13 | B23: 95.1724 | C23: 2.4421 | D23: 0.6982 | E23: 0.0943 | F23: 0.1055 | G23: 0.0008 | H23: 0.0234 | I23: 0.0173 | J23: 0.0221 | K23: 0.0102 | L23: 1.1954 | M23: 0.2183 | N23: 0.7044 | O23: 8164 | P23: 34.1827 | Q23: 9.495194444 | R23: =S23*238.8459 -> 9052.57011 | S23: 37.9013 | T23: 10.52813889 | U23: 11837.2028 | V23: 49.56 | W23: 13.76666667 | X23: -22.5 | Y23: -6.2
A24: 14 | B24: 95.8026 | C24: 2.1699 | D24: 0.6455 | E24: 0.0938 | F24: 0.989 | G24: 0.0006 | H24: 0.0214 | I24: 0.0151 | J24: 0.0191 | K24: 0.0097 | L24: 0.9499 | M24: 0.1736 | N24: 0.7001 | O24: 8160 | P24: 34.1673 | Q24: 9.490916667 | R24: =S24*238.8459 -> 9049.536767 | S24: 37.8886 | T24: 10.52461111 | U24: 11869.35146 | V24: 49.6946 | W24: 13.80405556 | X24: -24 | Y24: -7.1
A25: 15 | B25: 96.0523 | C25: 2.0493 | D25: 0.6065 | E25: 0.09 | F25: 0.0928 | G25: 0.0009 | H25: 0.0191 | I25: 0.0131 | J25: 0.0118 | K25: 0.0098 | L25: 0.8979 | M25: 0.1565 | N25: 0.698 | O25: 8148 | P25: 34.1173 | Q25: 9.477027778 | R25: =S25*238.8459 -> 9036.949588 | S25: 37.8359 | T25: 10.50997222 | U25: 11870.71288 | V25: 49.7003 | W25: 13.80563889 | X25: -21.3 | Y25: -5.9
A26: 16 | B26: 95.8951 | C26: 2.1087 | D26: 0.6164 | E26: 0.089 | F26: 0.093 | G26: 0.0007 | H26: 0.0202 | I26: 0.014 | J26: 0.0139 | K26: 0.0098 | L26: 0.9719 | M26: 0.1674 | N26: 0.6991 | O26: 8147 | P26: 34.1135 | Q26: 9.475972222 | R26: =S26*238.8459 -> 9035.707589 | S26: 37.8307 | T26: 10.50852778 | U26: 11860.17978 | V26: 49.6562 | W26: 13.79338889 | X26: -21.1 | Y26: -5.5
A27: 17 | B27: 95.3005 | C27: 2.5477 | D27: 0.7174 | E27: 0.0943 | F27: 0.1012 | G27: 0.0007 | H27: 0.0213 | I27: 0.0152 | J27: 0.0157 | K27: 0.0101 | L27: 1.0136 | M27: 0.1622 | N27: 0.7033 | O27: 8188 | P27: 34.284 | Q27: 9.523333333 | R27: =S27*238.8459 -> 9079.201428 | S27: 38.0128 | T27: 10.55911111 | U27: 11881.12657 | V27: 49.7439 | W27: 13.81775 | X27: -22.8 | Y27: -5
A28: 18 | O28: 8188 | P28: 34.284 | Q28: 9.523333333 | R28: =S28*238.8459 -> 9079.201428 | S28: 38.0128 | T28: 10.55911111 | U28: 11881.12657 | V28: 49.7439 | W28: 13.81775
A29: 19 | O29: 8188 | P29: 34.284 | Q29: 9.523333333 | R29: =S29*238.8459 -> 9079.201428 | S29: 38.0128 | T29: 10.55911111 | U29: 11881.12657 | V29: 49.7439 | W29: 13.81775
A30: 20 | B30: 95.1134 | C30: 2.6697 | D30: 0.7464 | E30: 0.0962 | F30: 0.1033 | G30: 0.0005 | H30: 0.0221 | I30: 0.0159 | J30: 0.0206 | K30: 0.0098 | L30: 1.0518 | M30: 0.1502 | N30: 0.7047 | O30: 8200 | P30: 34.333 | Q30: 9.536944444 | R30: =S30*238.8459 -> 9091.669184 | S30: 38.065 | T30: 10.57361111 | U30: 11886.04679 | V30: 49.7645 | W30: 13.82347222 | X30: -20.4 | Y30: -4 | AD30: =IF(AC30=100,"ОК"," ") -> 
A31: 21 | B31: 95.4725 | C31: 2.4989 | D31: 0.7108 | E31: 0.0956 | F31: 0.1008 | G31: 0.0006 | H31: 0.0211 | I31: 0.0148 | J31: 0.0143 | K31: 0.0094 | L31: 0.913 | M31: 0.1483 | N31: 0.7023 | O31: 8193 | P31: 34.3045 | Q31: 9.529027778 | R31: =S31*238.8459 -> 9084.814306 | S31: 38.0363 | T31: 10.56563889 | U31: 11897.55916 | V31: 49.8127 | W31: 13.83686111 | X31: -21.4 | Y31: -5.1 | Z31: <0,0001 | AA31: 0.0017
A32: 22 | B32: 96.0999 | C32: 2.1104 | D32: 0.6382 | E32: 0.0959 | F32: 0.0976 | G32: 0.0006 | H32: 0.0202 | I32: 0.0138 | J32: 0.0112 | K32: 0.0091 | L32: 0.7609 | M32: 0.1423 | N32: 0.6981 | O32: 8170 | P32: 34.2098 | Q32: 9.502722222 | R32: =S32*238.8459 -> 9299.918924 | S32: 38.9369 | T32: 10.81580556 | U32: 11901.66731 | V32: 49.8299 | W32: 13.84163889 | X32: -18.6 | Y32: -9.4
A33: 23 | B33: 96.1559 | C33: 2.0728 | D33: 0.6161 | E33: 0.0909 | F33: 0.0923 | G33: 0.0007 | H33: 0.0188 | I33: 0.0126 | J33: 0.0093 | K33: 0.0094 | L33: 0.7858 | M33: 0.1355 | N33: 0.6974 | O33: 8161 | P33: 34.1692 | Q33: 9.491444444 | R33: =S33*238.8459 -> 9050.635458 | S33: 37.8932 | T33: 10.52588889 | U33: 11894.19144 | V33: 49.7986 | W33: 13.83294444 | X33: -19.3 | Y33: -10 | AD33: =IF(AC33=100,"ОК"," ") -> 
A34: 24 | B34: 96.311 | C34: 1.9573 | D34: 0.5841 | E34: 0.0863 | F34: 0.088 | G34: 0.0006 | H34: 0.0178 | I34: 0.012 | J34: 0.0094 | K34: 0.0096 | L34: 0.7922 | M34: 0.1315 | N34: 0.6961 | O34: 8147 | P34: 34.113 | Q34: 9.475833333 | R34: =S34*238.8459 -> 9036.256935 | S34: 37.833 | T34: 10.50916667 | U34: 11885.99902 | V34: 49.7643 | W34: 13.82341667 | X34: -18.4 | Y34: -11.9 | AB34: відсут.
A35: 25 | O35: 8147 | P35: 34.113 | Q35: 9.475833333 | R35: =S35*238.8459 -> 9036.256935 | S35: 37.833 | T35: 10.50916667 | U35: 11885.99902 | V35: 49.7643 | W35: 13.82341667
A36: 26 | O36: 8147 | P36: 34.113 | Q36: 9.475833333 | R36: =S36*238.8459 -> 9036.256935 | S36: 37.833 | T36: 10.50916667 | U36: 11885.99902 | V36: 49.7643 | W36: 13.82341667
A37: 27 | B37: 96.1023 | C37: 2.0873 | D37: 0.6308 | E37: 0.0972 | F37: 0.1004 | G37: 0.0006 | H37: 0.0214 | I37: 0.0146 | J37: 0.0136 | K37: 0.0095 | L37: 0.7768 | M37: 0.1455 | N37: 0.6982 | O37: 8169 | P37: 34.2016 | Q37: 9.500444444 | R37: =S37*238.8459 -> 9058.923411 | S37: 37.9279 | T37: 10.53552778 | U37: 11898.13239 | V37: 49.8151 | W37: 13.83752778 | X37: -18.6 | Y37: -12
A38: 28 | B38: 96.2023 | C38: 2.0463 | D38: 0.6295 | E38: 0.0965 | F38: 0.0969 | G38: 0.0007 | H38: 0.0201 | I38: 0.0134 | J38: 0.011 | K38: 0.0093 | L38: 0.7299 | M38: 0.1441 | N38: 0.6975 | O38: 8167 | P38: 34.1973 | Q38: 9.49925 | R38: =S38*238.8459 -> 9057.991912 | S38: 37.924 | T38: 10.53444444 | U38: 11902.95708 | V38: 49.8353 | W38: 13.84313889 | X38: -17.9 | Y38: -14.1
A39: 29 | AC39: =SUM(B39:M39)+$K$42+$N$42 -> 0
A40: 30 | AC40: 0
A41: 31 | AC41: 0
A42: Рівень одоризації відповідає чинним нормативним документам | O42: =SUMPRODUCT(O11:O38,' розрахунок'!AC6:AC33)/' розрахунок'!AC34 -> 8171.122671 | P42: =SUMPRODUCT(P11:P38,' розрахунок'!AC6:AC33)/' розрахунок'!AC34 -> 34.21294651 | Q42: =SUMPRODUCT(Q11:Q38,' розрахунок'!AC6:AC33)/' розрахунок'!AC34 -> 9.503596253 | R42: =SUMPRODUCT(R11:R38,' розрахунок'!AC6:AC33)/' розрахунок'!AC34 -> 9068.786621 | S42: =SUMPRODUCT(S11:S38,' розрахунок'!AC6:AC33)/' розрахунок'!AC34 -> 37.9690697 | T42: =SUMPRODUCT(T11:T38,' розрахунок'!AC6:AC33)/' розрахунок'!AC34 -> 10.54696381
H43: Середньозважене значення теплоти згоряння:
B47: В.о.Начальник управління Херсонського ЛВУМГ Кузьмін Р.Ф. 01.03.2017
C48: Підрозділу підприємства, якому підпорядкована лабораторія | O48: прізвище | R48: підпис | V48: дата
B49: Завідувач лабораторією Камишанова О.С. 01.03.2017
C50: Лабораторія, де здійснювалось вимірювання газу | O50: прізвище | R50: підпис | V50: дата
B51: Начальник служби метрології Скавронський Є.К. 01.03.2017
C52: Підрозділу, відповідального за облік газу за маршрутом | O52: прізвище | R52: підпис | V52: дата

Sheet розрахунок (hidden)
A1: Додаток до Паспорту фізико-хімічних показників природного газу по маршруту № 656
A3: Число місяця | B3: Теплота згоряння вища, МДж/м3 | C3: Херсонська область | AC3: Загальний обсяг газу, м3
C4: Обсяг газу переданого за добу, м3
C5: ГРС Херсон -1 | D5: ГРС Херсон-2 | E5: ГРС Белозірка | F5: ГРС Станіслав | G5: ГРС Східне | H5: ГРС Садове | I5: ГРС Цюрупинск | J5: ГРС Виноградове | K5: ГРС Н.Маячка | L5: ГРС Обривки | M5: ГРС Нова Каховка | N5: ГРС Каховка | O5: ГРС Каховка (Коробки) | P5: ГРС Раздольне | Q5: ГРС Брилівка | R5: ГРС Каланчак | S5: ГРС Скадовськ | T5: ГРС Новоолександрівка | U5: ГРС Чаплинка | V5: ГРС Хрестівка | W5: ГРС Асканія Нова | X5: ГРС Асканія Нова (Тавричанка) | Y5: ГРС Червоний Чабан | Z5: ТОВ"РИТЕЙЛ-КР" | AA5: РВУ" ХАРКІВАВТОГАЗ" | AB5: ТОВ"ТЕК"ІТЕРА"
A6: 1 | B6: 37.9771 | C6: 1066.792 | D6: 579.38 | E6: 109.763 | F6: 30.774 | G6: 30.11 | H6: 16.311 | I6: 249.961 | J6: 16.773 | K6: 22.692 | L6: 0 | M6: 359.987 | N6: 193.46 | O6: 0 | P6: 7.589 | Q6: 47.173 | R6: 43.952 | S6: 127.815 | T6: 13.38 | U6: 58.15 | V6: 16.306 | W6: 0 | X6: 27.252 | Y6: 14.247 | Z6: 5.511 | AA6: 0.375 | AB6: 1.851 | AC6: =SUM(C6:AB6) -> 3039.604
A7: 2 | B7: 37.9555 | C7: 1054.742 | D7: 574.507 | E7: 107.48 | F7: 29.899 | G7: 28.935 | H7: 15.694 | I7: 241.281 | J7: 15.931 | K7: 21.501 | L7: 0 | M7: 350.145 | N7: 184.209 | O7: 0 | P7: 7.271 | Q7: 44.725 | R7: 41.459 | S7: 121.212 | T7: 12.426 | U7: 54.245 | V7: 15.228 | W7: 0 | X7: 25.429 | Y7: 12.637 | Z7: 5.755 | AA7: 0.693 | AB7: 1.807 | AC7: 2967.211
A8: 3 | B8: 37.9368 | C8: 931.314 | D8: 546.512 | E8: 95.424 | F8: 27.033 | G8: 25.947 | H8: 13.716 | I8: 220.333 | J8: 14.132 | K8: 19.455 | L8: 0 | M8: 323.237 | N8: 167.727 | O8: 0 | P8: 6.753 | Q8: 39.915 | R8: 37.018 | S8: 110.49 | T8: 11.204 | U8: 49.253 | V8: 13.933 | W8: 0 | X8: 23.171 | Y8: 11.373 | Z8: 5.6 | AA8: 0.692 | AB8: 1.83 | AC8: 2696.062
A9: 4 | B9: 37.9368 | C9: 832.603 | D9: 484.3 | E9: 83.853 | F9: 23.536 | G9: 22.638 | H9: 11.934 | I9: 196.324 | J9: 11.936 | K9: 16.762 | L9: 0 | M9: 287.642 | N9: 151.198 | O9: 0 | P9: 6.044 | Q9: 35.135 | R9: 32.878 | S9: 100.164 | T9: 9.661 | U9: 42.21 | V9: 12.032 | W9: 0 | X9: 20.488 | Y9: 10.152 | Z9: 5.368 | AA9: 0 | AB9: 1.369 | AC9: 2398.227
A10: 5 | B10: 37.9368 | C10: 829.116 | D10: 474.146 | E10: 86.262 | F10: 24.447 | G10: 23.19 | H10: 12.486 | I10: 202.16 | J10: 12.511 | K10: 16.935 | L10: 0 | M10: 290.896 | N10: 152.694 | O10: 0 | P10: 6.055 | Q10: 36.469 | R10: 33.663 | S10: 101.612 | T10: 10.224 | U10: 44.132 | V10: 12.495 | W10: 0 | X10: 20.77 | Y10: 10.534 | Z10: 5.1 | AA10: 0 | AB10: 0.811 | AC10: 2406.708
A11: 6 | B11: 37.8273 | C11: 854.23 | D11: 484.311 | E11: 85.677 | F11: 24.173 | G11: 23.747 | H11: 12.371 | I11: 192.948 | J11: 12.234 | K11: 16.905 | L11: 0 | M11: 293.739 | N11: 155.777 | O11: 0 | P11: 5.98 | Q11: 36.244 | R11: 34.15 | S11: 99.579 | T11: 10.138 | U11: 44.1 | V11: 12.412 | W11: 0 | X11: 20.665 | Y11: 10.662 | Z11: 5.523 | AA11: 0.796 | AB11: 1.303 | AC11: 2437.664
A12: 7 | B12: 37.8532 | C12: 948.283 | D12: 518.923 | E12: 97.644 | F12: 28.226 | G12: 28.423 | H12: 14.394 | I12: 229.491 | J12: 14.173 | K12: 19.756 | L12: 0 | M12: 325.123 | N12: 176.051 | O12: 0 | P12: 6.649 | Q12: 41.678 | R12: 39.269 | S12: 112.509 | T12: 11.986 | U12: 50.865 | V12: 14.387 | W12: 0 | X12: 23.72 | Y12: 13.222 | Z12: 5.985 | AA12: 0.551 | AB12: 1.71 | AC12: 2723.018
A13: 8 | B13: 37.8809 | C13: 1035.091 | D13: 557.164 | E13: 108.265 | F13: 31.608 | G13: 32.236 | H13: 15.892 | I13: 258.095 | J13: 16.998 | K13: 22.902 | L13: 0 | M13: 345.914 | N13: 196.489 | O13: 0 | P13: 7.379 | Q13: 47.113 | R13: 44.201 | S13: 126.035 | T13: 13.555 | U13: 57.095 | V13: 16.122 | W13: 0 | X13: 26.397 | Y13: 14.413 | Z13: 5.816 | AA13: 0.615 | AB13: 1.658 | AC13: 2981.053
A14: 9 | B14: 37.8601 | C14: 1057.307 | D14: 567.003 | E14: 112.072 | F14: 32.659 | G14: 32.794 | H14: 16.665 | I14: 264.616 | J14: 17.14 | K14: 23.328 | L14: 0 | M14: 370.595 | N14: 203.731 | O14: 0 | P14: 7.656 | Q14: 48.202 | R14: 44.462 | S14: 129.76 | T14: 13.598 | U14: 59.052 | V14: 16.38 | W14: 0 | X14: 27.12 | Y14: 14.805 | Z14: 6.122 | AA14: 0.594 | AB14: 1.828 | AC14: 3067.489
A15: 10 | B15: 38.0804 | C15: 1088.883 | D15: 582.544 | E15: 114.09 | F15: 33.339 | G15: 33 | H15: 16.956 | I15: 271.292 | J15: 17.329 | K15: 23.699 | L15: 0 | M15: 373.958 | N15: 204.731 | O15: 0 | P15: 7.734 | Q15: 48.923 | R15: 44.808 | S15: 131.151 | T15: 13.449 | U15: 59.027 | V15: 16.657 | W15: 0 | X15: 27.523 | Y15: 14.537 | Z15: 6.052 | AA15: 0.934 | AB15: 2.191 | AC15: 3132.807
A16: 11 | B16: 38.0804 | C16: 1073.835 | D16: 586.363 | E16: 114.245 | F16: 33.277 | G16: 31.776 | H16: 16.714 | I16: 267.819 | J16: 17.572 | K16: 23.534 | L16: 0 | M16: 366.68 | N16: 200.514 | O16: 0 | P16: 7.725 | Q16: 48.528 | R16: 45.593 | S16: 130.673 | T16: 13.26 | U16: 58.922 | V16: 17.09 | W16: 0 | X16: 27.611 | Y16: 14.646 | Z16: 4.085 | AA16: 0 | AB16: 1.224 | AC16: 3101.686
A17: 12 | B17: 38.0804 | C17: 1027.301 | D17: 565.463 | E17: 105.352 | F17: 29.7 | G17: 29.117 | H17: 15.302 | I17: 245.989 | J17: 15.697 | K17: 21.285 | L17: 0 | M17: 348.197 | N17: 187.138 | O17: 0 | P17: 7.461 | Q17: 44.579 | R17: 41.832 | S17: 121.389 | T17: 12.601 | U17: 54.702 | V17: 15.672 | W17: 0 | X17: 25.71 | Y17: 13.386 | Z17: 4.533 | AA17: 0 | AB17: 0.452 | AC17: 2932.858
A18: 13 | B18: 37.9013 | C18: 998.433 | D18: 553.804 | E18: 102.457 | F18: 28.753 | G18: 28.042 | H18: 14.592 | I18: 236.154 | J18: 14.815 | K18: 20.773 | L18: 0 | M18: 336.415 | N18: 184.877 | O18: 0 | P18: 7.181 | Q18: 42.916 | R18: 39.262 | S18: 116.015 | T18: 11.857 | U18: 53.193 | V18: 15.386 | W18: 0 | X18: 25.218 | Y18: 12.73 | Z18: 5.676 | AA18: 0.899 | AB18: 1.357 | AC18: 2850.805
A19: 14 | B19: 37.8886 | C19: 960.673 | D19: 553.608 | E19: 102.998 | F19: 29.384 | G19: 28.441 | H19: 14.8 | I19: 234.971 | J19: 15.473 | K19: 20.937 | L19: 0 | M19: 341.736 | N19: 184.591 | O19: 0 | P19: 7.214 | Q19: 43.809 | R19: 41.389 | S19: 118.536 | T19: 12.261 | U19: 53.665 | V19: 15.708 | W19: 0 | X19: 25.363 | Y19: 13.29 | Z19: 5.605 | AA19: 0 | AB19: 1.867 | AC19: 2826.319
A20: 15 | B20: 37.8359 | C20: 924.304 | D20: 533.139 | E20: 97.212 | F20: 27.176 | G20: 26.252 | H20: 14.331 | I20: 220.865 | J20: 14.751 | K20: 19.494 | L20: 0 | M20: 323.022 | N20: 174.593 | O20: 0 | P20: 6.809 | Q20: 41.339 | R20: 39.412 | S20: 112.927 | T20: 11.43 | U20: 50.341 | V20: 14.441 | W20: 0 | X20: 23.906 | Y20: 12.218 | Z20: 5.832 | AA20: 0.861 | AB20: 1.766 | AC20: 2696.421
A21: 16 | B21: 37.8307 | C21: 891.084 | D21: 520.96 | E21: 91.942 | F21: 25.553 | G21: 25.192 | H21: 13.33 | I21: 214.839 | J21: 13.782 | K21: 18.864 | L21: 0 | M21: 314.199 | N21: 171.182 | O21: 0 | P21: 6.56 | Q21: 39.676 | R21: 37.742 | S21: 108.557 | T21: 10.957 | U21: 49.665 | V21: 14.063 | W21: 0 | X21: 23.032 | Y21: 11.633 | Z21: 5.866 | AA21: 0.617 | AB21: 1.929 | AC21: 2611.224
A22: 17 | B22: 38.0128 | C22: 847.049 | D22: 508.53 | E22: 88.666 | F22: 24.64 | G22: 24.167 | H22: 12.967 | I22: 203.562 | J22: 13.147 | K22: 17.965 | L22: 0 | M22: 302.713 | N22: 165.113 | O22: 0 | P22: 6.286 | Q22: 38.313 | R22: 36.131 | S22: 103.583 | T22: 10.27 | U22: 46.593 | V22: 13.516 | W22: 0 | X22: 22.131 | Y22: 11.142 | Z22: 4.78 | AA22: 0.63 | AB22: 1.847 | AC22: 2503.741
A23: 18 | B23: 38.0128 | C23: 805.488 | D23: 489.317 | E23: 83.457 | F23: 23.279 | G23: 22.18 | H23: 11.935 | I23: 185.569 | J23: 12.441 | K23: 17.09 | L23: 0 | M23: 280.345 | N23: 156.526 | O23: 0 | P23: 6.137 | Q23: 36.245 | R23: 34.567 | S23: 99.352 | T23: 9.763 | U23: 44.52 | V23: 12.857 | W23: 0 | X23: 21.25 | Y23: 10.517 | Z23: 3.733 | AA23: 0 | AB23: 1.478 | AC23: 2368.046
A24: 19 | B24: 38.0128 | C24: 779.352 | D24: 477.223 | E24: 80.528 | F24: 22.185 | G24: 21.642 | H24: 11.673 | I24: 177.839 | J24: 11.783 | K24: 16.243 | L24: 0 | M24: 272.687 | N24: 151.926 | O24: 0 | P24: 5.86 | Q24: 35.192 | R24: 33.587 | S24: 95.741 | T24: 9.724 | U24: 42.698 | V24: 12.196 | W24: 0 | X24: 20.27 | Y24: 10.038 | Z24: 3.586 | AA24: 0 | AB24: 0.631 | AC24: 2292.604
A25: 20 | B25: 38.065 | C25: 782.875 | D25: 434.218 | E25: 79.413 | F25: 22.66 | G25: 21.403 | H25: 11.42 | I25: 179.93 | J25: 11.453 | K25: 15.952 | L25: 0 | M25: 267.465 | N25: 147.236 | O25: 0 | P25: 5.822 | Q25: 34.099 | R25: 32.591 | S25: 93.613 | T25: 9.474 | U25: 41.83 | V25: 11.997 | W25: 0 | X25: 19.778 | Y25: 10.07 | Z25: 4.269 | AA25: 0.774 | AB25: 1.524 | AC25: 2239.866
A26: 21 | B26: 38.0363 | C26: 730.445 | D26: 460.338 | E26: 78.019 | F26: 22.279 | G26: 21.984 | H26: 10.974 | I26: 173.384 | J26: 10.991 | K26: 15.271 | L26: 0 | M26: 261.292 | N26: 140.135 | O26: 0 | P26: 5.601 | Q26: 32.748 | R26: 31.396 | S26: 91.137 | T26: 9.085 | U26: 41.081 | V26: 11.602 | W26: 0 | X26: 19.186 | Y26: 9.751 | Z26: 5.127 | AA26: 0.713 | AB26: 1.843 | AC26: 2184.382
A27: 22 | B27: 38.9369 | C27: 709.82 | D27: 463.342 | E27: 76.589 | F27: 21.633 | G27: 20.997 | H27: 10.865 | I27: 167.988 | J27: 10.905 | K27: 14.948 | L27: 0 | M27: 253.005 | N27: 133.643 | O27: 0 | P27: 5.464 | Q27: 32.299 | R27: 30.592 | S27: 89.923 | T27: 8.941 | U27: 39.864 | V27: 11.371 | W27: 0 | X27: 18.864 | Y27: 9.744 | Z27: 5.156 | AA27: 0.488 | AB27: 1.694 | AC27: 2138.135
A28: 23 | B28: 37.8932 | C28: 685.289 | D28: 454.743 | E28: 73.227 | F28: 21.422 | G28: 19.956 | H28: 10.621 | I28: 161.426 | J28: 10.662 | K28: 14.308 | L28: 0 | M28: 245.011 | N28: 131.812 | O28: 0 | P28: 5.266 | Q28: 31.457 | R28: 30.38 | S28: 88.787 | T28: 8.778 | U28: 39.014 | V28: 11.235 | W28: 0 | X28: 18.425 | Y28: 9.611 | Z28: 5.667 | AA28: 0.507 | AB28: 1.414 | AC28: 2079.018
A29: 24 | B29: 37.833 | C29: 567.273 | D29: 416.472 | E29: 65.761 | F29: 19.258 | G29: 18.301 | H29: 9.311 | I29: 142.289 | J29: 9.739 | K29: 13.113 | L29: 0 | M29: 217.278 | N29: 119.566 | O29: 0 | P29: 4.788 | Q29: 28.658 | R29: 27.451 | S29: 80.828 | T29: 7.565 | U29: 34.444 | V29: 10.199 | W29: 0 | X29: 16.378 | Y29: 8.461 | Z29: 5.994 | AA29: 0.523 | AB29: 1.688 | AC29: 1825.338
A30: 25 | B30: 37.833 | C30: 624.001 | D30: 420.887 | E30: 76.061 | F30: 22.06 | G30: 20.464 | H30: 10.553 | I30: 164.024 | J30: 11.235 | K30: 14.751 | L30: 0 | M30: 241.594 | N30: 133.295 | O30: 0 | P30: 5.176 | Q30: 31.973 | R30: 30.263 | S30: 88.696 | T30: 8.452 | U30: 37.861 | V30: 11.071 | W30: 0 | X30: 18.23 | Y30: 9.265 | Z30: 4.55 | AA30: 0 | AB30: 1.583 | AC30: 1986.045
A31: 26 | B31: 37.833 | C31: 632.377 | D31: 436.16 | E31: 73.812 | F31: 21.329 | G31: 20.458 | H31: 10.498 | I31: 163.662 | J31: 10.879 | K31: 14.564 | L31: 0 | M31: 236.844 | N31: 132.11 | O31: 0 | P31: 5.212 | Q31: 31.81 | R31: 29.686 | S31: 87.553 | T31: 8.805 | U31: 39.28 | V31: 11.417 | W31: 0 | X31: 18.406 | Y31: 9.315 | Z31: 4.72 | AA31: 0 | AB31: 0.615 | AC31: 1999.512
A32: 27 | B32: 37.9279 | C32: 592.025 | D32: 430.876 | E32: 70.233 | F32: 20.579 | G32: 19.329 | H32: 10.251 | I32: 153.507 | J32: 10.286 | K32: 14.015 | L32: 0 | M32: 232.127 | N32: 127.534 | O32: 0 | P32: 5.139 | Q32: 30.687 | R32: 29.311 | S32: 85.514 | T32: 8.634 | U32: 37.68 | V32: 10.998 | W32: 0 | X32: 17.609 | Y32: 9.114 | Z32: 5.427 | AA32: 0.892 | AB32: 1.31 | AC32: 1923.077
A33: 28 | B33: 37.924 | C33: =570.588+0.127 -> 570.715 | D33: 393.937 | E33: 63.172 | F33: 18.613 | G33: 17.398 | H33: =9.111-0.001 -> 9.11 | I33: =140.189-0.001 -> 140.188 | J33: 8.99 | K33: 12.434 | L33: 0 | M33: 210.027 | N33: 117.792 | O33: 0 | P33: 4.716 | Q33: 27.449 | R33: 25.959 | S33: 75.335 | T33: 7.673 | U33: =34.194-0.001 -> 34.193 | V33: 9.755 | W33: 0 | X33: 15.823 | Y33: 8.178 | Z33: 6.518 | AA33: 0.694 | AB33: =1.801+0.09 -> 1.891 | AC33: 1780.56
A34: Загальний обсяг газу, м3 | C34: =SUM(C6:C33) -> 23900.7 | D34: 14068.17 | E34: 2523.674 | F34: 719.474 | G34: 698.119 | H34: 365.666 | I34: 5760.506 | J34: 373.758 | K34: 509.476 | L34: 0 | M34: 8371.873 | N34: 4545.65 | O34: 0 | P34: 177.527 | Q34: 1077.354 | R34: 1013.004 | S34: 2948.486 | T34: 299.151 | U34: 1317.675 | V34: 376.526 | W34: 0 | X34: 619.725 | Y34: 319.691 | Z34: 147.956 | AA34: 12.848 | AB34: 42.471 | AC34: 70189.48
A35: Енергія, МДж | C35: =SUMPRODUCT(B6:B33,C6:C33) -> 907491.5618 | D35: =SUMPRODUCT(B6:B33,D6:D33) -> 534174.1081 | E35: =SUMPRODUCT(B6:B33,E6:E33) -> 95820.8411 | F35: =SUMPRODUCT(B6:B33,F6:F33) -> 27317.22947 | G35: =SUMPRODUCT(B6:B33,G6:G33) -> 26506.34202 | H35: =SUMPRODUCT(B6:B33,H6:H33) -> 13883.74413 | I35: =SUMPRODUCT(B6:B33,I6:I33) -> 218715.0952 | J35: =SUMPRODUCT(B6:B33,J6:J33) -> 14190.74088 | K35: =SUMPRODUCT(B6:B33,K6:K33) -> 19343.85857 | L35: =SUMPRODUCT(B6:B33,L6:L33) -> 0 | M35: =SUMPRODUCT(B6:B33,M6:M33) -> 317868.7362 | N35: =SUMPRODUCT(B6:B33,N6:N33) -> 172588.2143 | O35: =SUMPRODUCT(B6:B33,O6:O33) -> 0 | P35: =SUMPRODUCT(B6:B33,P6:P33) -> 6740.590124 | Q35: =SUMPRODUCT(B6:B33,Q6:Q33) -> 40905.3784 | R35: =SUMPRODUCT(B6:B33,R6:R33) -> 38462.22508 | S35: =SUMPRODUCT(B6:B33,S6:S33) -> 111949.9385 | T35: =SUMPRODUCT(B6:B33,T6:T33) -> 11358.19524 | U35: =SUMPRODUCT(B6:B33,U6:U33) -> 50030.32865 | V35: =SUMPRODUCT(B6:B33,V6:V33) -> 14296.14837 | W35: =SUMPRODUCT(B6:B33,W6:W33) -> 0 | X35: =SUMPRODUCT(B6:B33,X6:X33) -> 23530.27378 | Y35: =SUMPRODUCT(B6:B33,Y6:Y33) -> 12138.20673 | Z35: =SUMPRODUCT(B6:B33,Z6:Z33) -> 5617.001475 | AA35: =SUMPRODUCT(B6:B33,AA6:AA33) -> 487.7896679 | AB35: =SUMPRODUCT(B6:B33,AB6:AB33) -> 1612.710676 | AC35: =SUMPRODUCT(B6:B33,AC6:AC33) -> 2665029.258
A36: Теплота згоряння (середньозважене значення за місяць), МДж/м³ | C36: =C35/C34 -> 37.96924616 | D36: 37.97040469 | E36: 37.96878721 | F36: 37.96833446 | G36: 37.96822894 | H36: 37.96837587 | I36: 37.96803532 | J36: 37.96772479 | K36: 37.96814486 | M36: 37.96865243 | N36: 37.96777452 | P36: 37.96938 | Q36: 37.96837288 | R36: 37.96848293 | S36: 37.96861796 | T36: 37.96810053 | U36: 37.96864071 | V36: 37.96855561 | X36: 37.96889552 | Y36: 37.96855942 | Z36: 37.96399926 | AA36: 37.96619458 | AB36: 37.9720439 | AC36: =AC35/AC34 -> 37.9690697
A37: Теплота згоряння (середньозважене значення за місяць), ккал/м³ | C37: =C36*238.8459 -> 9068.798772 | D37: =D36*238.8459 -> 9069.075481 | E37: 9068.689154 | F37: 9068.581015 | G37: 9068.555813 | H37: 9068.590907 | I37: 9068.509566 | J37: 9068.435399 | K37: 9068.53573 | M37: 9068.656962 | N37: 9068.447277 | P37: 9068.830739 | Q37: 9068.590193 | R37: 9068.616476 | S37: 9068.648729 | T37: 9068.525143 | U37: 9068.654163 | V37: 9068.633837 | X37: 9068.715022 | Y37: 9068.634747 | Z37: 9067.545571 | AA37: 9068.069913 | AB37: 9069.467 | AC37: 9068.756625
A38: Теплота згоряння (середньозважене значення за місяць), кВт*год./м³ | C38: =C36/3.6 -> 10.54701282 | D38: =D36/3.6 -> 10.54733464 | E38: 10.54688534 | F38: 10.54675957 | G38: 10.54673026 | H38: 10.54677108 | I38: 10.54667648 | J38: 10.54659022 | K38: 10.5467069 | M38: 10.5468479 | N38: 10.54660403 | P38: 10.54705 | Q38: 10.54677025 | R38: 10.54680081 | S38: 10.54683832 | T38: 10.54669459 | U38: 10.54684464 | V38: 10.546821 | X38: 10.54691542 | Y38: 10.54682206 | Z38: 10.54555535 | AA38: 10.54616516 | AB38: 10.54778997 | AC38: 10.54696381

Sheet додаток
A1: Додаток до Паспорту фізико-хімічних показників природного газу № 656
A3: Область | B3: ГРС, прямий споживач | C3: Cередньозважене значення вищої теплоти згоряння
C4: МДж/м³ | D4: ккал/м³ | E4: кВт*год./м³
A5: Херсонська область | B5: ГРС-1 Херсон | C5: =' розрахунок'!C36 -> 37.96924616 | D5: 9069 | E5: 10.55
B6: ГРС-2 Херсон | C6: =' розрахунок'!D36 -> 37.97040469 | D6: 9069 | E6: 10.55
B7: ГРС Белозірка | C7: 37.97 | D7: 9069 | E7: 10.55
B8: ГРС Станіслав | C8: 37.97 | D8: 9069 | E8: 10.55
B9: ГРС Східне | C9: 37.97 | D9: 9069 | E9: 10.55
B10: ГРС Садове | C10: 37.97 | D10: 9069 | E10: 10.55
B11: ГРС Цюрупинск | C11: 37.97 | D11: 9068 | E11: 10.55
B12: ГРС Виноградове | C12: 37.97 | D12: 9068 | E12: 10.55
B13: ГРС Нова Маячка | C13: 37.97 | D13: 9069 | E13: 10.55
B14: ГРС Обривки | C14: ='[1] розрахунок'!L36 -> 0 | D14: 0 | E14: 0
B15: ГРС Нова Каховка | C15: 37.97 | D15: 9069 | E15: 10.55
B16: ГРС Каховка (Лінія Каховка) | C16: 37.97 | D16: 9068 | E16: 10.55
B17: ГРС Каховка (лІнія Коробки) | C17: ='[1] розрахунок'!O36 -> 0 | D17: 0 | E17: 0
B18: ГРС Раздольне | C18: 37.97 | D18: 9069 | E18: 10.55
B19: ГРС Брилівка | C19: 37.97 | D19: 9069 | E19: 10.55
B20: ГРС Каланчак | C20: 37.97 | D20: 9069 | E20: 10.55
B21: ГРС Скадовськ | C21: 37.97 | D21: 9069 | E21: 10.55
B22: ГРС Новоолександрівка | C22: 37.97 | D22: 9069 | E22: 10.55
B23: ГРС Чаплинка | C23: 37.97 | D23: 9069 | E23: 10.55
B24: ГРС Хрестівка | C24: 37.97 | D24: 9069 | E24: 10.55
B25: ГРС Асканія Нова | C25: ='[1] розрахунок'!W36 -> 0 | D25: 0 | E25: 0
B26: ГРС Асканія Нова (Тавричанка) | C26: 37.97 | D26: 9069 | E26: 10.55
B27: ГРС Червоний Чабан | C27: 37.97 | D27: 9069 | E27: 10.55
B28: ТОВ " РИТЕЙЛ - КР" | C28: 37.97 | D28: 9068 | E28: 10.55
B29: РВУ " ХАРКІВАВТОГАЗ" | C29: 37.97 | D29: 9068 | E29: 10.55
B30: ТОВ"ТЕК" ІТЕРА" | C30: 37.97 | D30: 9069 | E30: 10.55
A31: Середньозважене значення вищої теплоти згоряння по маршруту № 656 | C31: 37.97 | D31: 9069 | E31: 10.55
A35: В.о.Начальник управління Херсонського ЛВУМГ Кузьмін Р.Ф. | F35: 2017-03-01
A36: Підрозділу підприємства, якому підпорядкована лабораторія | D36: прізвище | E36: підпис | F36: дата
A37: Завідувач лабораторії Камишанова О.С. | F37: 2017-03-01
A38: Лабораторія, де здійснювалось вимірювання газу | D38: прізвище | E38: підпис | F38: дата
A39: Начальник служби ГВ та М Скавронський Є.К. | F39: 2017-03-01
A40: Підрозділу, відповідального за облік газу за маршрутом | D40: прізвище | E40: підпис | F40: дата

Sheet variablesList (hidden)
A1: 3 | B1: x:\gaysin | C1: 10, 11, 24, 25, 127, 128, 132, 180, 207, 215 | D1: x:\
B2: x:\Illinci
B3: x:\Talne
